[Event "Turkish Cup 2024"]
[Site "Denizli"]
[Date "2024.08.02"]
[Round "6"]
[White "Saltik, Suleyman"]
[Black "Turgut, Hakan"]
[Result "0-1"]
[ECO "E14"]
[WhiteElo "1776"]
[BlackElo "2052"]
[Annotator "ChessBase"]
[PlyCount "112"]
[EventDate "2024.08.01"]
[EventType "swiss"]
[EventCountry "TUR"]
[SourceTitle "playchess.com"]
[Source "ChessBase"]
[SourceQuality "1"]
[TimeControl "5400+30"]

1. d4 {[%emt 0:02:00]} Nf6 {[%emt 0:01:00]} 2. Nf3 {[%emt 0:00:30]} e6 {[%emt 0:00:30]} 3. e3 {[%emt 0:02:30]} c5 {[%emt 0:01:30]} 4. c4 {[%emt 0:02:30]} b6 {[%emt 0:04:30]} 5. Nc3 {[%emt 0:01:30]} cxd4 {[%emt 0:05:30]} 6. exd4 {[%emt 0:02:30]} Bb7 {[%emt 0:02:30]} 7. Bf4 {[%emt 0:02:30]} Bb4 {[%emt 0:03:30]} 8. Bd3 {[%emt 0:01:30]} O-O {[%emt 0:01:30]} 9. O-O {[%emt 0:05:30]} d5 {[%emt 0:00:30]} 10. cxd5 {[%emt 0:00:30]} exd5 {[%emt 0:07:30]} 11. Nb5 {[%emt 0:07:30]} Nc6 {[%emt 0:12:30]} 12. a3 {[%emt 0:06:30]} Be7 {[%emt 0:00:30]} 13. Rc1 {[%emt 0:13:30]} a6 {[%emt 0:06:30]} 14. Nc3 {[%emt 0:05:30]} b5 {[%emt 0:03:30]} 15. Ne5 {[%emt 0:04:30]} Nxe5 {[%emt 0:03:30]} 16. Bxe5 {[%emt 0:02:30]} Nd7 {[%emt 0:09:30]} 17. Bf4 {[%emt 0:05:30]} Rc8 {[%emt 0:06:30]} 18. Bf5 {[%emt 0:05:30]} g6 {[%emt 0:01:30]} 19. Bg4 {[%emt 0:02:30]} f5 {[%emt 0:03:30]} 20. Bf3 {[%emt 0:01:30]} Nf6 {[%emt 0:01:30]} 21. Be5 {[%emt 0:04:30]} Ne4 {[%emt 0:01:30]} 22. Bxe4 {[%emt 0:02:32]} fxe4 {[%emt 0:00:30]} 23. Qb3 {[%emt 0:01:27]} Rf7 {[%emt 0:02:30]} 24. Ne2 {[%emt 0:03:06]} Bg5 {[%emt 0:01:56]} 25. Rc3 {[%emt 0:01:52]} Rc4 {[%emt 0:02:28]} 26. f4 {[%emt 0:02:19]} exf3 {[%emt 0:04:51]} 27. Rcxf3 {[%emt 0:00:27]} Re7 {[%emt 0:02:41]} 28. Rf8+ {[%emt 0:00:59]} Qxf8 {[%emt 0:00:05]} 29. Rxf8+ {[%emt 0:00:00]} Kxf8 {[%emt 0:00:30]} 30. Bd6 {[%emt 0:00:00]} Kg7 {[%emt 0:01:15]} 31. Bxe7 {[%emt 0:02:55]} Bxe7 {[%emt 0:00:30]} 32. h3 {[%emt 0:00:30]} Bf6 {[%emt 0:00:30]} 33. Qd3 {[%emt 0:00:30]} Bc8 {[%emt 0:02:05]} 34. g4 {[%emt 0:01:29]} Be6 {[%emt 0:01:32]} 35. b3 {[%emt 0:00:15]} Rc7 {[%emt 0:00:11]} 36. Kg2 {[%emt 0:04:12]} Bf7 {[%emt 0:00:24]} 37. Kg3 {[%emt 0:01:14]} Re7 {[%emt 0:02:16]} 38. a4 {[%emt 0:02:00]} Bg5 {[%emt 0:01:57]} 39. Kg2 {[%emt 0:00:02]} Re3 {[%emt 0:00:11]} 40. Qd1 {[%emt 0:00:51]} h5 {[%emt 0:00:43]} 41. gxh5 {[%emt 0:00:48]} Be6 {[%emt 0:00:20]} 42. Ng1 {[%emt 0:01:18]} Bf5 {[%emt 0:00:56]} 43. hxg6 {[%emt 0:01:31]} Bh4 {[%emt 0:00:50]} 44. Ne2 {[%emt 0:00:38]} Bxh3+ {[%emt 0:00:41]} 45. Kh1 {[%emt 0:00:28]} Bg4 {[%emt 0:00:08]} 46. Qf1 {[%emt 0:00:17]} Bf3+ {[%emt 0:02:45]} 47. Kg1 {[%emt 0:00:07]} Kxg6 {[%emt 0:00:48]} 48. Nf4+ {[%emt 0:00:39]} Kh6 {[%emt 0:00:55]} 49. Qh3 {[%emt 0:01:20]} Re1+ {[%emt 0:00:09]} 50. Qf1 {[%emt 0:00:00]} Rxf1+ {[%emt 0:00:44]} 51. Kxf1 {[%emt 0:00:03]} b4 {[%emt 0:00:30]} 52. Nd3 {[%emt 0:00:30]} a5 {[%emt 0:00:30]} 53. Nc5 {[%emt 0:00:30]} Bd1 {[%emt 0:00:30]} 54. Nb7 {[%emt 0:00:30]} Bxb3 {[%emt 0:00:30]} 55. Nxa5 {[%emt 0:00:30]} Bxa4 {[%emt 0:00:30]} 56. Ke2 {[%emt 0:00:30]} b3 {[%emt 0:00:30]} 0-1

[Event "Turkish Cup 2024"]
[Site "Denizli"]
[Date "2024.08.02"]
[Round "6"]
[White "Tutmaz, Bugra Hamza"]
[Black "Yasin, Hur"]
[Result "0-1"]
[ECO "A46"]
[WhiteElo "1761"]
[BlackElo "1879"]
[Annotator "NA"]
[PlyCount "158"]
[EventDate "2024.08.01"]
[EventType "swiss"]
[EventCountry "TUR"]
[SourceTitle "playchess.com"]
[Source "ChessBase"]
[SourceQuality "1"]
[TimeControl "5400+30"]

1. d4 {[%emt 0:01:00]} Nf6 {[%emt 0:03:00]} 2. Nf3 {[%emt 0:00:00]} e6 {[%emt 0:00:00]} 3. Bf4 {[%emt 0:00:00]} c5 {[%emt 0:00:00]} 4. c3 {[%emt 0:00:00]} cxd4 {[%emt 0:01:30]} 5. cxd4 {[%emt 0:03:00]} Nc6 {[%emt 0:02:30]} 6. e3 {[%emt 0:00:30]} Qb6 {[%emt 0:01:30]} 7. Nbd2 {[%emt 0:03:30]} Qxb2 {[%emt 0:01:30]} 8. Bc4 {[%emt 0:02:30]} d5 {[%emt 0:04:30]} 9. Bb3 {[%emt 0:01:30]} Ne4 {[%emt 0:02:30]} 10. Nxe4 {[%emt 0:08:30]} dxe4 {[%emt 0:00:00]} 11. Ng5 {[%emt 0:00:30]} Bb4+ {[%emt 0:11:00]} 12. Kf1 {[%emt 0:00:00]} O-O {[%emt 0:01:30]} 13. Rb1 {[%emt 0:00:00]} Qa3 {[%emt 0:00:00]} 14. Nxe4 {[%emt 0:03:30]} b6 {[%emt 0:03:00]} 15. Kg1 {[%emt 0:00:30]} Bb7 {[%emt 0:03:30]} 16. Qg4 {[%emt 0:05:30]} Kh8 {[%emt 0:04:30]} 17. Ng5 {[%emt 0:01:30]} Be7 {[%emt 0:02:30]} 18. h4 {[%emt 0:01:30]} h6 {[%emt 0:03:30]} 19. Qh5 {[%emt 0:07:30]} Nd8 {[%emt 0:00:30]} 20. Rh3 {[%emt 0:25:30]} Bd6 {[%emt 0:11:30]} 21. Bxd6 {[%emt 0:05:30]} Qxd6 {[%emt 0:00:30]} 22. Rg3 {[%emt 0:00:30]} Rc8 {[%emt 0:00:30]} 23. Nf3 {[%emt 0:03:30]} Bxf3 {[%emt 0:04:30]} 24. gxf3 {[%emt 0:00:30]} Qa3 {[%emt 0:10:30]} 25. Qg4 {[%emt 0:01:30]} Rg8 {[%emt 0:00:30]} 26. Kh2 {[%emt 0:01:30]} Rc1 {[%emt 0:00:30]} 27. Rxc1 {[%emt 0:00:30]} Qxc1 {[%emt 0:00:30]} 28. Qe4 {[%emt 0:00:00]} Qc6 {[%emt 0:04:30]} 29. Qe5 {[%emt 0:02:00]} Qd7 {[%emt 0:03:30]} 30. Qe4 {[%emt 0:01:30]} Qc6 {[%emt 0:03:18]} 31. Qf4 {[%emt 0:01:30]} a5 {[%emt 0:00:42]} 32. Rg1 {[%emt 0:01:30]} b5 {[%emt 0:03:43]} 33. Bd1 {[%emt 0:02:04]} Qc4 {[%emt 0:05:11]} 34. Qe5 {[%emt 0:02:30]} Qxa2 {[%emt 0:02:12]} 35. Kg2 {[%emt 0:00:49]} Qc4 {[%emt 0:00:14]} 36. f4 {[%emt 0:00:24]} a4 {[%emt 0:01:30]} 37. Re1 {[%emt 0:01:04]} a3 {[%emt 0:00:56]} 38. Be2 {[%emt 0:02:25]} Qc3 {[%emt 0:00:33]} 39. Kf1 {[%emt 0:00:34]} b4 {[%emt 0:02:05]} 40. Qa5 {[%emt 0:01:14]} Nc6 {[%emt 0:02:32]} 41. Qa4 {[%emt 0:00:01]} Ne7 {[%emt 0:00:22]} 42. Rb1 {[%emt 0:01:50]} Rb8 {[%emt 0:01:07]} 43. Kg1 {[%emt 0:01:21]} Qc6 {[%emt 0:01:27]} 44. Qb3 {[%emt 0:02:50]} Nd5 {[%emt 0:00:10]} 45. Bf3 {[%emt 0:00:34]} Qb5 {[%emt 0:00:12]} 46. Ra1 {[%emt 0:00:36]} Nc3 {[%emt 0:00:24]} 47. Bg2 {[%emt 0:00:55]} Rc8 {[%emt 0:00:35]} 48. Bf1 {[%emt 0:00:30]} Qa4 {[%emt 0:00:15]} 49. Qxa4 {[%emt 0:00:39]} Nxa4 {[%emt 0:00:05]} 50. Bd3 {[%emt 0:00:20]} Rc3 {[%emt 0:00:03]} 51. Bb5 {[%emt 0:01:10]} Nb2 {[%emt 0:00:12]} 52. Kf1 {[%emt 0:00:17]} Nd3 {[%emt 0:01:05]} 53. Ke2 {[%emt 0:00:10]} Nc1+ {[%emt 0:00:12]} 54. Kd1 {[%emt 0:00:43]} a2 {[%emt 0:00:10]} 55. Ba4 {[%emt 0:00:00]} Kg8 {[%emt 0:00:37]} 56. Kd2 {[%emt 0:02:50]} Rc7 {[%emt 0:00:08]} 57. Kd1 {[%emt 0:00:50]} Kf8 {[%emt 0:00:31]} 58. Bc2 {[%emt 0:00:41]} Ne2 {[%emt 0:01:38]} 59. Kd2 {[%emt 0:01:18]} Nc3 {[%emt 0:00:28]} 60. Bb3 {[%emt 0:00:31]} Ra7 {[%emt 0:00:30]} 61. Kc2 {[%emt 0:01:52]} Ra3 {[%emt 0:00:46]} 62. Kb2 {[%emt 0:00:17]} Ke7 {[%emt 0:00:14]} 63. Bxa2 {[%emt 0:00:28]} Na4+ {[%emt 0:00:30]} 64. Kb1 {[%emt 0:00:56]} b3 {[%emt 0:00:30]} 65. Bxb3 {[%emt 0:00:00]} Rxb3+ {[%emt 0:00:05]} 66. Kc2 {[%emt 0:00:15]} Rb2+ {[%emt 0:00:00]} 67. Kd3 {[%emt 0:00:00]} Nb6 {[%emt 0:00:03]} 68. Rf1 {[%emt 0:00:40]} Nd5 {[%emt 0:00:37]} 69. Ke4 {[%emt 0:00:11]} f5+ {[%emt 0:00:01]} 70. Kf3 {[%emt 0:00:52]} Nf6 {[%emt 0:00:05]} 71. Ra1 {[%emt 0:00:17]} Ne4 {[%emt 0:00:30]} 72. Kg2 {[%emt 0:00:30]} Rxf2+ {[%emt 0:00:30]} 73. Kg1 {[%emt 0:00:30]} Rf3 {[%emt 0:00:30]} 74. Ra3 {[%emt 0:00:22]} Rh3 {[%emt 0:00:00]} 75. Kg2 {[%emt 0:00:30]} Rxh4 {[%emt 0:00:21]} 76. Ra7+ {[%emt 0:00:00]} Kf6 {[%emt 0:00:00]} 77. Ra6 {[%emt 0:00:12]} Rg4+ {[%emt 0:00:00]} 78. Kh2 {[%emt 0:00:14]} Nc3 {[%emt 0:00:00]} 79. Ra3 {[%emt 0:00:25]} Nd5 {[%emt 0:00:00]} 0-1

[Event "Turkish Cup 2024"]
[Site "Denizli"]
[Date "2024.08.03"]
[Round "7"]
[White "Maruflu, Enes Yusuf"]
[Black "Torun, Kagan"]
[Result "1-0"]
[ECO "B45"]
[WhiteElo "2228"]
[BlackElo "1868"]
[Annotator "ChessBase"]
[PlyCount "73"]
[EventDate "2024.08.01"]
[EventType "swiss"]
[EventCountry "TUR"]
[SourceTitle "playchess.com"]
[Source "ChessBase"]
[SourceQuality "1"]
[TimeControl "5400+30"]

1. e4 {[%emt 0:01:00]} c5 {[%emt 0:01:00]} 2. Nf3 {[%emt 0:00:00]} e6 {[%emt 0:00:30]} 3. d4 {[%emt 0:00:00]} cxd4 {[%emt 0:00:30]} 4. Nxd4 {[%emt 0:00:00]} Nf6 {[%emt 0:00:00]} 5. Nc3 {[%emt 0:00:00]} Nc6 {[%emt 0:00:00]} 6. g3 {[%emt 0:02:30]} Bb4 {[%emt 0:05:30]} 7. Bg2 {[%emt 0:00:30]} d6 {[%emt 0:14:30]} 8. O-O {[%emt 0:01:30]} O-O {[%emt 0:04:30]} 9. Nb3 {[%emt 0:06:30]} a5 {[%emt 0:01:30]} 10. a4 {[%emt 0:00:30]} Bxc3 {[%emt 0:00:30]} 11. bxc3 {[%emt 0:00:30]} d5 {[%emt 0:13:30]} 12. exd5 {[%emt 0:00:30]} Nxd5 {[%emt 0:00:30]} 13. Ba3 {[%emt 0:08:30]} Re8 {[%emt 0:00:30]} 14. Qf3 {[%emt 0:02:30]} Qc7 {[%emt 0:11:30]} 15. Rfe1 {[%emt 0:01:30]} Bd7 {[%emt 0:02:30]} 16. Nc5 {[%emt 0:00:30]} Rad8 {[%emt 0:16:30]} 17. Ne4 {[%emt 0:11:30]} Bc8 {[%emt 0:03:30]} 18. Rad1 {[%emt 0:01:30]} Ne5 {[%emt 0:02:30]} 19. Qh5 {[%emt 0:01:30]} Nc4 {[%emt 0:01:32]} 20. Bc1 {[%emt 0:01:30]} Rf8 {[%emt 0:07:31]} 21. Qh4 {[%emt 0:07:30]} f6 {[%emt 0:01:58]} 22. f4 {[%emt 0:03:30]} Qb6+ {[%emt 0:03:46]} 23. Kh1 {[%emt 0:00:00]} Nde3 {[%emt 0:02:36]} 24. Bxe3 {[%emt 0:07:00]} Rxd1 {[%emt 0:00:28]} 25. Bxb6 {[%emt 0:00:30]} Rxe1+ {[%emt 0:00:33]} 26. Bg1 {[%emt 0:00:30]} Rd8 {[%emt 0:02:01]} 27. Qh5 {[%emt 0:05:30]} Bd7 {[%emt 0:03:33]} 28. Qc5 {[%emt 0:00:30]} Bc6 {[%emt 0:00:25]} 29. Qxc4 {[%emt 0:02:30]} Rdd1 {[%emt 0:00:28]} 30. Qxe6+ {[%emt 0:03:30]} Kf8 {[%emt 0:00:02]} 31. Qc8+ {[%emt 0:05:30]} Ke7 {[%emt 0:00:25]} 32. Qc7+ {[%emt 0:01:30]} Kf8 {[%emt 0:00:02]} 33. h4 {[%emt 0:02:30]} Rxg1+ {[%emt 0:01:31]} 34. Kh2 {[%emt 0:00:30]} Rge1 {[%emt 0:00:31]} 35. Qxa5 {[%emt 0:02:30]} Re2 {[%emt 0:00:36]} 36. Qc5+ {[%emt 0:00:30]} Ke8 {[%emt 0:00:19]} 37. Qh5+ {[%emt 0:00:30]} 1-0

[Event "Turkish Cup 2024"]
[Site "Denizli"]
[Date "2024.08.03"]
[Round "7"]
[White "Ozdemir, Serhan Berat"]
[Black "Bulgurlu, Okan"]
[Result "1/2-1/2"]
[ECO "B01"]
[WhiteElo "2194"]
[BlackElo "1964"]
[Annotator "ChessBase"]
[PlyCount "118"]
[EventDate "2024.08.01"]
[EventType "swiss"]
[EventCountry "TUR"]
[SourceTitle "playchess.com"]
[Source "ChessBase"]
[SourceQuality "1"]
[TimeControl "5400+30"]

1. e4 {[%emt 0:02:00]} d5 {[%emt 0:01:00]} 2. exd5 {[%emt 0:00:30]} Qxd5 {[%emt 0:00:30]} 3. Nc3 {[%emt 0:00:00]} Qd6 {[%emt 0:00:00]} 4. d4 {[%emt 0:00:00]} c6 {[%emt 0:00:00]} 5. Nf3 {[%emt 0:00:00]} Nf6 {[%emt 0:00:30]} 6. Ne5 {[%emt 0:00:00]} Bf5 {[%emt 0:00:00]} 7. Bf4 {[%emt 0:11:30]} Qd8 {[%emt 0:06:00]} 8. g4 {[%emt 0:02:30]} Be6 {[%emt 0:06:30]} 9. Bg2 {[%emt 0:08:30]} Nbd7 {[%emt 0:06:30]} 10. h3 {[%emt 0:03:30]} Nd5 {[%emt 0:09:30]} 11. Nxd5 {[%emt 0:09:30]} Bxd5 {[%emt 0:00:30]} 12. Bxd5 {[%emt 0:00:00]} Qa5+ {[%emt 0:01:30]} 13. c3 {[%emt 0:03:00]} Qxd5 {[%emt 0:00:00]} 14. Qf3 {[%emt 0:00:30]} Nxe5 {[%emt 0:03:00]} 15. Qxd5 {[%emt 0:00:30]} Nd3+ {[%emt 0:00:30]} 16. Kd2 {[%emt 0:00:00]} cxd5 {[%emt 0:00:30]} 17. Kxd3 {[%emt 0:00:00]} e6 {[%emt 0:00:00]} 18. h4 {[%emt 0:00:00]} h5 {[%emt 0:00:00]} 19. g5 {[%emt 0:01:00]} Be7 {[%emt 0:02:30]} 20. Rae1 {[%emt 0:00:30]} O-O {[%emt 0:03:30]} 21. Bd2 {[%emt 0:02:30]} Kh7 {[%emt 0:04:30]} 22. a4 {[%emt 0:00:30]} Rac8 {[%emt 0:00:30]} 23. Rhg1 {[%emt 0:03:30]} Kg6 {[%emt 0:04:30]} 24. b3 {[%emt 0:00:30]} Rc6 {[%emt 0:02:30]} 25. a5 {[%emt 0:02:30]} Rfc8 {[%emt 0:04:30]} 26. Rc1 {[%emt 0:01:30]} Ba3 {[%emt 0:02:30]} 27. Rc2 {[%emt 0:01:30]} Bb4 {[%emt 0:00:30]} 28. Ra1 {[%emt 0:00:30]} f6 {[%emt 0:00:30]} 29. gxf6 {[%emt 0:01:30]} gxf6 {[%emt 0:00:30]} 30. Ra4 {[%emt 0:00:30]} Be7 {[%emt 0:02:30]} 31. Rc1 {[%emt 0:00:00]} f5 {[%emt 0:01:30]} 32. Rg1+ {[%emt 0:00:00]} Kf7 {[%emt 0:00:00]} 33. f3 {[%emt 0:00:30]} Rg8 {[%emt 0:12:00]} 34. Rxg8 {[%emt 0:00:30]} Kxg8 {[%emt 0:00:00]} 35. Be1 {[%emt 0:01:30]} Kf7 {[%emt 0:00:00]} 36. c4 {[%emt 0:00:30]} Rc8 {[%emt 0:02:30]} 37. c5 {[%emt 0:00:30]} e5 {[%emt 0:00:00]} 38. Rb4 {[%emt 0:00:30]} e4+ {[%emt 0:03:00]} 39. Ke3 {[%emt 0:05:30]} b6 {[%emt 0:00:30]} 40. axb6 {[%emt 0:05:30]} axb6 {[%emt 0:00:00]} 41. Rxb6 {[%emt 0:00:30]} Rxc5 {[%emt 0:00:00]} 42. fxe4 {[%emt 0:08:30]} fxe4 {[%emt 0:01:30]} 43. Bb4 {[%emt 0:16:02]} Rc8 {[%emt 0:06:59]} 44. Rb7 {[%emt 0:01:57]} Re8 {[%emt 0:00:03]} 45. Bxe7 {[%emt 0:01:32]} Rxe7 {[%emt 0:00:04]} 46. Rb6 {[%emt 0:03:05]} Re6 {[%emt 0:00:34]} 47. Rb7+ {[%emt 0:00:08]} Re7 {[%emt 0:10:57]} 48. Rb6 {[%emt 0:00:36]} Ra7 {[%emt 0:02:50]} 49. Rd6 {[%emt 0:05:28]} Ra5 {[%emt 0:00:05]} 50. Kd2 {[%emt 0:00:31]} Ke7 {[%emt 0:04:44]} 51. Rh6 {[%emt 0:00:05]} Ra2+ {[%emt 0:00:38]} 52. Kc3 {[%emt 0:00:10]} Rh2 {[%emt 0:00:11]} 53. Rxh5 {[%emt 0:00:06]} Kd6 {[%emt 0:00:31]} 54. Kb4 {[%emt 0:01:22]} e3 {[%emt 0:01:35]} 55. Re5 {[%emt 0:01:11]} Rxh4 {[%emt 0:00:29]} 56. Kc3 {[%emt 0:00:49]} Rh3 {[%emt 0:00:25]} 57. b4 {[%emt 0:01:00]} e2+ {[%emt 0:01:21]} 58. Kc2 {[%emt 0:00:05]} Rh2 {[%emt 0:00:37]} 59. Kd3 {[%emt 0:00:01]} Rh3+ {[%emt 0:00:00]} 1/2-1/2

[Event "Turkish Cup 2024"]
[Site "Denizli"]
[Date "2024.08.03"]
[Round "7"]
[White "Topuz, Mirac Melih"]
[Black "Gunduz, Umut Erdem"]
[Result "1/2-1/2"]
[ECO "A43"]
[WhiteElo "2148"]
[BlackElo "2276"]
[Annotator "ChessBase"]
[PlyCount "46"]
[EventDate "2024.08.01"]
[EventType "swiss"]
[EventCountry "TUR"]
[SourceTitle "playchess.com"]
[Source "ChessBase"]
[SourceQuality "1"]
[TimeControl "5400+30"]

1. d4 {[%emt 0:04:00]} e6 {[%emt 0:01:00]} 2. c4 {[%emt 0:00:30]} c5 {[%emt 0:00:30]} 3. d5 {[%emt 0:00:00]} exd5 {[%emt 0:00:30]} 4. cxd5 {[%emt 0:00:00]} d6 {[%emt 0:00:30]} 5. e4 {[%emt 0:00:30]} g6 {[%emt 0:00:30]} 6. h3 {[%emt 0:01:30]} Bg7 {[%emt 0:00:30]} 7. Nf3 {[%emt 0:00:30]} a6 {[%emt 0:00:30]} 8. Bd3 {[%emt 0:02:30]} Ne7 {[%emt 0:04:30]} 9. O-O {[%emt 0:00:30]} O-O {[%emt 0:01:30]} 10. a4 {[%emt 0:04:30]} h6 {[%emt 0:01:30]} 11. Re1 {[%emt 0:01:30]} g5 {[%emt 0:07:30]} 12. Na3 {[%emt 0:09:30]} b5 {[%emt 0:07:30]} 13. axb5 {[%emt 0:09:30]} axb5 {[%emt 0:00:00]} 14. Bxb5 {[%emt 0:00:30]} Ng6 {[%emt 0:00:00]} 15. Rb1 {[%emt 0:05:30]} Na6 {[%emt 0:09:30]} 16. Nc4 {[%emt 0:01:30]} Rb8 {[%emt 0:04:30]} 17. Bxa6 {[%emt 0:20:30]} Bxa6 {[%emt 0:00:00]} 18. Ne3 {[%emt 0:00:00]} Bc8 {[%emt 0:08:00]} 19. Nf5 {[%emt 0:06:00]} Bxf5 {[%emt 0:01:30]} 20. exf5 {[%emt 0:00:30]} Ne5 {[%emt 0:00:30]} 21. Nxe5 {[%emt 0:00:30]} Bxe5 {[%emt 0:00:00]} 22. h4 {[%emt 0:02:30]} Qf6 {[%emt 0:01:00]} 23. Qg4 {[%emt 0:01:30]} Rb4 {[%emt 0:02:30]} 1/2-1/2

[Event "Turkish Cup 2024"]
[Site "Denizli"]
[Date "2024.08.03"]
[Round "7"]
[White "Uysal, Ugur"]
[Black "Var, Sefa"]
[Result "1-0"]
[ECO "A37"]
[WhiteElo "2114"]
[BlackElo "1841"]
[Annotator "ChessBase"]
[PlyCount "105"]
[EventDate "2024.08.01"]
[EventType "swiss"]
[EventCountry "TUR"]
[SourceTitle "playchess.com"]
[Source "ChessBase"]
[SourceQuality "1"]
[TimeControl "5400+30"]

1. Nf3 {[%emt 0:01:00]} c5 {[%emt 0:02:00]} 2. c4 {[%emt 0:00:00]} g6 {[%emt 0:00:30]} 3. g3 {[%emt 0:02:00]} Bg7 {[%emt 0:02:30]} 4. Bg2 {[%emt 0:00:00]} Nc6 {[%emt 0:01:30]} 5. O-O {[%emt 0:00:00]} e6 {[%emt 0:02:30]} 6. Nc3 {[%emt 0:08:30]} Nge7 {[%emt 0:03:30]} 7. d3 {[%emt 0:04:30]} O-O {[%emt 0:04:30]} 8. Bf4 {[%emt 0:08:30]} d6 {[%emt 0:06:30]} 9. Qd2 {[%emt 0:01:30]} Re8 {[%emt 0:14:30]} 10. Ne4 {[%emt 0:03:30]} e5 {[%emt 0:19:30]} 11. Bg5 {[%emt 0:01:30]} Rf8 {[%emt 0:06:30]} 12. Nf6+ {[%emt 0:04:30]} Kh8 {[%emt 0:00:30]} 13. Nd5 {[%emt 0:00:30]} f6 {[%emt 0:00:30]} 14. Bh6 {[%emt 0:00:30]} Nxd5 {[%emt 0:01:30]} 15. Bxg7+ {[%emt 0:01:30]} Kxg7 {[%emt 0:00:30]} 16. cxd5 {[%emt 0:00:00]} Ne7 {[%emt 0:01:30]} 17. e4 {[%emt 0:00:00]} a5 {[%emt 0:08:30]} 18. Qc3 {[%emt 0:01:30]} f5 {[%emt 0:01:30]} 19. Nd2 {[%emt 0:02:30]} f4 {[%emt 0:00:00]} 20. b3 {[%emt 0:01:30]} b5 {[%emt 0:01:00]} 21. a3 {[%emt 0:00:30]} Bd7 {[%emt 0:02:52]} 22. b4 {[%emt 0:00:30]} cxb4 {[%emt 0:02:46]} 23. axb4 {[%emt 0:00:30]} axb4 {[%emt 0:00:34]} 24. Qxb4 {[%emt 0:00:00]} Rxa1 {[%emt 0:01:37]} 25. Rxa1 {[%emt 0:00:00]} Qc7 {[%emt 0:02:22]} 26. d4 {[%emt 0:03:30]} fxg3 {[%emt 0:00:21]} 27. hxg3 {[%emt 0:00:00]} Nc8 {[%emt 0:02:32]} 28. dxe5 {[%emt 0:02:00]} Qb6 {[%emt 0:00:21]} 29. e6 {[%emt 0:18:30]} Qxf2+ {[%emt 0:00:52]} 30. Kh2 {[%emt 0:00:00]} Be8 {[%emt 0:00:01]} 31. Rf1 {[%emt 0:00:00]} Qe3 {[%emt 0:02:13]} 32. Qb2+ {[%emt 0:00:30]} Kg8 {[%emt 0:00:00]} 33. Rxf8+ {[%emt 0:03:30]} Kxf8 {[%emt 0:00:00]} 34. Qf6+ {[%emt 0:00:30]} Kg8 {[%emt 0:00:15]} 35. Nf3 {[%emt 0:00:30]} Qh6+ {[%emt 0:04:47]} 36. Nh4 {[%emt 0:00:00]} Qf8 {[%emt 0:01:27]} 37. Qd8 {[%emt 0:00:00]} Ne7 {[%emt 0:00:10]} 38. Qxd6 {[%emt 0:00:30]} g5 {[%emt 0:01:21]} 39. Nf3 {[%emt 0:01:30]} h6 {[%emt 0:01:08]} 40. Nd4 {[%emt 0:02:30]} Ng6 {[%emt 0:02:50]} 41. Qb8 {[%emt 0:08:30]} h5 {[%emt 0:00:11]} 42. d6 {[%emt 0:00:30]} Ne5 {[%emt 0:01:06]} 43. d7 {[%emt 0:00:30]} Nxd7 {[%emt 0:00:52]} 44. exd7 {[%emt 0:00:30]} Bxd7 {[%emt 0:00:00]} 45. Qe5 {[%emt 0:01:30]} Qg7 {[%emt 0:00:00]} 46. Qd5+ {[%emt 0:00:00]} Kh7 {[%emt 0:00:48]} 47. Nf5 {[%emt 0:01:00]} Bxf5 {[%emt 0:01:13]} 48. Qxf5+ {[%emt 0:00:30]} Kh6 {[%emt 0:00:00]} 49. Qxb5 {[%emt 0:02:30]} h4 {[%emt 0:00:00]} 50. e5 {[%emt 0:00:30]} hxg3+ {[%emt 0:00:41]} 51. Kxg3 {[%emt 0:00:30]} Qf7 {[%emt 0:00:00]} 52. Qc6+ {[%emt 0:00:30]} Kg7 {[%emt 0:00:41]} 53. Qb7 {[%emt 0:00:00]} 1-0

[Event "Turkish Cup 2024"]
[Site "Denizli"]
[Date "2024.08.03"]
[Round "7"]
[White "Kavri, Yusuf Eren"]
[Black "Hatirli, Ugur Can"]
[Result "1-0"]
[ECO "D38"]
[WhiteElo "2090"]
[BlackElo "1948"]
[Annotator "ChessBase"]
[PlyCount "125"]
[EventDate "2024.08.01"]
[EventType "swiss"]
[EventCountry "TUR"]
[SourceTitle "playchess.com"]
[Source "ChessBase"]
[SourceQuality "1"]
[TimeControl "5400+30"]

1. d4 Nf6 2. c4 e6 3. Nc3 Bb4 4. Nf3 O-O 5. Bg5 d5 6. e3 c6 7. Rc1 Nbd7 8. cxd5 exd5 9. Be2 Re8 10. O-O Nf8 11. a3 Bd6 12. b4 a5 13. Qb3 b5 14. Nd1 Bd7 15. Nb2 a4 16. Qc2 Rc8 17. Nd3 Ng6 18. Nc5 Bxc5 19. Qxc5 Ne4 20. Bxd8 Nxc5 21. Rxc5 Rexd8 22. Bd3 Ne7 23. Rfc1 f6 24. h3 Be8 25. g4 Rb8 26. g5 Bg6 27. R5c3 Rd6 28. gxf6 gxf6 29. Kh2 Kf7 30. Nh4 Rg8 31. Ng2 Rb8 32. Nf4 Rbd8 33. Rg1 Rg8 34. Be2 Rb8 35. Rg3 Nf5 36. Rg4 Ne7 37. Rc1 Rg8 38. Rcg1 Rdd8 39. R4g2 Rd6 40. Bg4 Rh8 41. Rg3 Re8 42. h4 Rh8 43. Bh3 Rg8 44. h5 Be4 45. Be6+ Rxe6 46. Rxg8 Nxg8 47. Nxe6 Ne7 48. Nf4 Nf5 49. Rc1 Ne7 50. Kg3 Bf5 51. f3 Bd7 52. e4 dxe4 53. fxe4 Nc8 54. d5 cxd5 55. Nxd5 Nd6 56. Rc7 Ke6 57. Nxf6 Bc8 58. Kf4 Kxf6 59. e5+ Ke6 60. exd6 Bd7 61. Rxd7 Kxd7 62. Ke5 h6 63. Kd5 1-0

[Event "Turkish Cup 2024"]
[Site "Denizli"]
[Date "2024.08.03"]
[Round "7"]
[White "Atis, Hasan"]
[Black "Nazli, Sertan"]
[Result "1-0"]
[ECO "C70"]
[WhiteElo "2080"]
[BlackElo "1861"]
[Annotator "ChessBase"]
[PlyCount "63"]
[EventDate "2024.08.01"]
[EventType "swiss"]
[EventCountry "TUR"]
[SourceTitle "playchess.com"]
[Source "ChessBase"]
[SourceQuality "1"]
[TimeControl "5400+30"]

1. e4 {[%emt 0:01:00]} e5 {[%emt 0:01:00]} 2. Nf3 {[%emt 0:00:30]} Nc6 {[%emt 0:00:30]} 3. Bb5 {[%emt 0:00:00]} a6 {[%emt 0:00:30]} 4. Ba4 {[%emt 0:00:00]} Bc5 {[%emt 0:04:30]} 5. d3 {[%emt 0:00:00]} Nge7 {[%emt 0:00:30]} 6. O-O {[%emt 0:03:00]} O-O {[%emt 0:05:30]} 7. Nxe5 {[%emt 0:06:30]} Nxe5 {[%emt 0:01:30]} 8. d4 {[%emt 0:00:30]} b5 {[%emt 0:00:30]} 9. Bb3 {[%emt 0:00:30]} Bxd4 {[%emt 0:00:00]} 10. Qxd4 {[%emt 0:00:00]} d6 {[%emt 0:02:00]} 11. Qe3 {[%emt 0:07:00]} c5 {[%emt 0:03:30]} 12. c3 {[%emt 0:00:30]} c4 {[%emt 0:00:30]} 13. Bc2 {[%emt 0:00:30]} f5 {[%emt 0:00:00]} 14. f4 {[%emt 0:11:30]} Ng4 {[%emt 0:03:00]} 15. Qe2 {[%emt 0:00:30]} Qb6+ {[%emt 0:21:30]} 16. Kh1 {[%emt 0:00:00]} Nf6 {[%emt 0:00:30]} 17. e5 {[%emt 0:05:00]} dxe5 {[%emt 0:01:30]} 18. fxe5 {[%emt 0:00:30]} Nfd5 {[%emt 0:04:30]} 19. a4 {[%emt 0:12:30]} Bb7 {[%emt 0:05:30]} 20. axb5 {[%emt 0:00:30]} axb5 {[%emt 0:00:30]} 21. Rxa8 {[%emt 0:00:30]} Bxa8 {[%emt 0:00:30]} 22. Na3 {[%emt 0:00:00]} Ng6 {[%emt 0:05:30]} 23. Bxf5 {[%emt 0:12:00]} Ndf4 {[%emt 0:11:30]} 24. Bxf4 {[%emt 0:00:30]} Rxf5 {[%emt 0:00:00]} 25. Bg3 {[%emt 0:01:30]} Rg5 {[%emt 0:07:00]} 26. e6 {[%emt 0:11:30]} Qb7 {[%emt 0:10:24]} 27. Rf7 {[%emt 0:09:07]} Qc6 {[%emt 0:01:43]} 28. Nc2 {[%emt 0:05:09]} Nh4 {[%emt 0:01:26]} 29. Nd4 {[%emt 0:01:39]} Qd5 {[%emt 0:07:08]} 30. Rd7 {[%emt 0:02:25]} Rxg3 {[%emt 0:02:15]} 31. Rxd5 {[%emt 0:00:35]} Rxg2 {[%emt 0:00:40]} 32. Rd8# {[%emt 0:00:11]} 1-0